﻿Department family,Entity,Date,Expense type,Expense area,Supplier,Transaction number,Amount,Description,Supplier Postcode
Families & Specialist Services,Radiology,17/05/2023,Contractual Clinical Services,Rad General,4 Ways Healthcare Ltd,4WHC/01240000,"-25,418.15 ",Outsourced teleradiology reporting,HP2 7BF
Families & Specialist Services,Radiology,17/05/2023,Contractual Clinical Services,Rad General,4 Ways Healthcare Ltd,4WHC/09230237,"62,176.13 ",Outsourced teleradiology reporting,HP2 7BF
Families & Specialist Services,Radiology,17/05/2023,Contractual Clinical Services,Rad General,4 Ways Healthcare Ltd,4WHC/10230008,"73,113.79 ",Outsourced teleradiology reporting,HP2 7BF
Families & Specialist Services,Radiology,17/05/2023,Contractual Clinical Services,Rad General,4 Ways Healthcare Ltd,4WHC/11230008,"56,938.68 ",Outsourced teleradiology reporting,HP2 7BF
Families & Specialist Services,Radiology,17/05/2023,Contractual Clinical Services,Rad General,4 Ways Healthcare Ltd,4WHC/12230237,"50,224.29 ",Outsourced teleradiology reporting,HP2 7BF
Balance Sheet,L2 Current Assets,03/05/2023,Finished Processed Goods,Stock & Work In Progress,Alliance Healthcare Distribution Ltd,F34351324,"40,984.01 ",Pharmaceutical purchase,KT9 1SN
Balance Sheet,L2 Current Assets,03/05/2023,Finished Processed Goods,Stock & Work In Progress,Alliance Healthcare Distribution Ltd,F34452138,"81,843.82 ",Pharmaceutical purchase,KT9 1SN
Balance Sheet,L2 Current Assets,19/05/2023,Finished Processed Goods,Stock & Work In Progress,Alliance Healthcare Distribution Ltd,F34K51512,"53,967.84 ",Pharmaceutical purchase,KT9 1SN
Balance Sheet,L2 Current Assets,26/05/2023,Finished Processed Goods,Stock & Work In Progress,Alliance Healthcare Distribution Ltd,F34S52097,"67,462.80 ",Pharmaceutical purchase,KT9 1SN
Balance Sheet,L2 Current Assets,12/05/2023,Finished Processed Goods,Stock & Work In Progress,Alloga Uk Ltd,SIN103761001,"28,079.60 ",Pharmaceutical purchase,DE55 2FH
Balance Sheet,L2 Current Assets,24/05/2023,Finished Processed Goods,Stock & Work In Progress,Alloga Uk Ltd,SIN103772706,"27,000.00 ",Pharmaceutical purchase,DE55 2FH
CHS Estates,L2 Estates,24/05/2023,Contract : Other External,Medical Physics,B Braun Sterilog (Yorkshire) Ltd,328746969,"212,591.98 ",Decontamination Services for Surgical & Podiatry,S35 2PW
Balance Sheet,L2 Current Assets,10/05/2023,Finished Processed Goods,Stock & Work In Progress,Bayer Plc,824C485261,"27,373.68 ",Pharmaceutical purchase,RG2 6AD
Balance Sheet,L2 Current Assets,17/05/2023,Finished Processed Goods,Stock & Work In Progress,Bayer Plc,824C487740,"27,373.68 ",Pharmaceutical purchase,RG2 6AD
Balance Sheet,L2 Current Assets,24/05/2023,Finished Processed Goods,Stock & Work In Progress,Bayer Plc,824C488835,"114,057.00 ",Pharmaceutical purchase,RG2 6AD
Balance Sheet,L2 Current Assets,26/05/2023,Finished Processed Goods,Stock & Work In Progress,Bayer Plc,824C490233,"27,373.68 ",Pharmaceutical purchase,RG2 6AD
Families & Specialist Services,Outpatients & Records Services,19/05/2023,Med Surg Eqpt General,Outpatients Dept,Bioventus Cooperatief U.A.,95996879,"26,568.00 ",Exogen bone simulators,HOOFDDORP.
Surgery & Anaesthetics,Surgical Divisional Support,24/05/2023,Contractual Clinical Services,Independent Sector,Bmi Healthcare Ltd,S5712FEB23,"94,669.75 ",Provision of Elective Activity,SK3 0XN
Surgery & Anaesthetics,Surgical Divisional Support,17/05/2023,Contractual Clinical Services,Independent Sector,Bmi Healthcare Ltd,S5712JAN23,"113,340.36 ",Provision of Elective Activity,SK3 0XN
Balance Sheet,L2 Current Assets,05/05/2023,Finished Processed Goods,Stock & Work In Progress,Bristol Myers Squibb Pharmaceuticals Ltd,100712646,"33,169.44 ",Pharmaceutical purchase,CH4 9QW
Balance Sheet,L2 Current Assets,12/05/2023,Finished Processed Goods,Stock & Work In Progress,Bristol Myers Squibb Pharmaceuticals Ltd,100713168,"27,531.00 ",Pharmaceutical purchase,CH4 9QW
Balance Sheet,L2 Current Assets,17/05/2023,Finished Processed Goods,Stock & Work In Progress,Bristol Myers Squibb Pharmaceuticals Ltd,100713876,"41,461.80 ",Pharmaceutical purchase,CH4 9QW
Surgery & Anaesthetics,Surgical Divisional Support,03/05/2023,Healthcare From Commercial Sector,Elective Recovery,Calderdale And Huddersfield Orthopaedic Partnership Llp,INV-0084,"75,000.00 ",Provision of Orthopaedic and/or Specialty Healthcare Services,LS8 2JH
Surgery & Anaesthetics,Surgical Divisional Support,03/05/2023,Healthcare From Commercial Sector,Elective Recovery,Calderdale And Huddersfield Orthopaedic Partnership Llp,INV-0085,"63,250.58 ",Provision of Orthopaedic and/or Specialty Healthcare Services,LS8 2JH
Surgery & Anaesthetics,Surgical Divisional Support,26/05/2023,Healthcare From Commercial Sector,Elective Recovery,Calderdale And Huddersfield Orthopaedic Partnership Llp,INV-0087,"75,000.00 ",Provision of Orthopaedic and/or Specialty Healthcare Services,LS8 2JH
Surgery & Anaesthetics,Surgical Divisional Support,26/05/2023,Healthcare From Commercial Sector,Elective Recovery,Calderdale And Huddersfield Orthopaedic Partnership Llp,INV-0088,"74,025.57 ",Provision of Orthopaedic and/or Specialty Healthcare Services,LS8 2JH
Corporate Services,Service Performance,03/05/2023,Minor Works,Pfi,Calderdale Hospital Spc Ltd,CASI68,"48,012.54 ",New Works Instructions,M20 2YY
Corporate Services,Service Performance,19/05/2023,Contract : Other External,Pfi,Calderdale Hospital Spc Ltd,CASI71,"3,048,766.66 ",PFI contract monthly payment,M20 2YY
Corporate Services,Service Performance,12/05/2023,External Contracts : Catering,Pfi,Calderdale Hospital Spc Ltd,CASI72,"77,982.56 ",Additional variations,M20 2YY
Corporate Services,Service Performance,12/05/2023,External Contracts : Catering,Pfi,Calderdale Hospital Spc Ltd,CASI72,"77,982.56 ",Additional variations,M20 2YY
Corporate Services,Service Performance,12/05/2023,Minor Works,Pfi,Calderdale Hospital Spc Ltd,CASI75,"59,341.61 ",Calderdale LED Project,M20 2YY
Corporate Services,Service Performance,11/05/2023,Rates,Properties,Calderdale Metropolitan Borough Council,25202391017613,"249,600.00 ",Council Tax for Calderdale Royal Hospital for 23/24,HX1 1TP
Balance Sheet,Fixed Assets,05/05/2023,Additions - Assets Under Construction,Capital (Fss),Canon Medical Systems Ltd,220054737,"61,500.00 ",VITREA WORKSTATION / VITREA EXTEND / VITREA ENTERPRISE,RH10 9AX
Health Informatics,Modernisation Programme,24/05/2023,Computer Software / License  Fees,Modernisation Programme,Cerner Ltd,102231065,"63,112.80 ",Cerner Table 12: RHO Recurring Charges. Monthly  commencing from the Effective Date and continuing until the end of the Term £52 594 monthly for 2023.,W2 1AF
Health Informatics,Modernisation Programme,24/05/2023,Computer Software / License  Fees,Modernisation Programme,Cerner Ltd,102231147,"38,400.00 ",Cerner CCN053 Nuance Drage medical one speech recognition  shared computing services monthly recuring charge £32 000 for 2023. to match to order rwyr400053037,W2 1AF
Balance Sheet,Fixed Assets,24/05/2023,Additions - Assets Under Construction,Capital (His),Cerner Ltd,102231234,"77,400.00 ",Ignite Millennium API Implementation 100% of Shared Computing Services one-time fees due upon the Effective Date of CCN089,W2 1AF
Health Informatics,Modernisation Programme,24/05/2023,Computer Software / License  Fees,Modernisation Programme,Cerner Ltd,102231234,"77,400.00 ",Cerner - CCN 089 : IGNITE API SMART on FHIR SCS Recurring Charges for the period commencing from CCN089 Effective Date until the end of the Term (23 months) - £57 500,W2 1AF
Health Informatics,Modernisation Programme,26/05/2023,Computer Software / License  Fees,Modernisation Programme,Cerner Ltd,102232206,"63,112.80 ",Cerner Table 12: RHO Recurring Charges. Monthly  commencing from the Effective Date and continuing until the end of the Term £52 594 monthly for 2023.,W2 1AF
Health Informatics,Modernisation Programme,26/05/2023,Computer Software / License  Fees,Modernisation Programme,Cerner Ltd,102232275,"38,400.00 ",Cerner CCN053 Nuance Drage medical one speech recognition  shared computing services monthly recuring charge £32 000 for 2023. to match to order rwyr400053037,W2 1AF
Families & Specialist Services,Pathology,10/05/2023,Laboratory Test Kits,Microbiology,Chrystal Consulting Ltd,62156,"162,457.34 ",Laboratory Managed Service Contract,M22 5HQ
Health Informatics,Corporate And Operations,05/05/2023,Computer Hardware Purchases,It Support,Cisilion Ltd,INVUK0017886,"38,834.57 ",SMART Maintenance - 8x5xNBD h/w replacement only  duration: 5 years,KT22 9UT
Health Informatics,Corporate And Operations,05/05/2023,Computer Hardware Purchases,It Support,Cisilion Ltd,INVUK0017899,"234,002.21 ",Network switches CISCO 9200i 48p 5 year DNA Essentials license C9115AXI-E Cisco Catalyst 9115 AX Series,KT22 9UT
Balance Sheet,Fixed Assets,03/05/2023,Additions - Assets Under Construction,Capital (Surgical),CMR Surgical Ltd,INV-UK01010297,"1,440,000.00 ",Versius Surgery Robot SystemRef: Contract C141319,CB24 9NG
Balance Sheet,L2 Current Assets,05/05/2023,Finished Processed Goods,Stock & Work In Progress,Csl Behring Uk Ltd,994055343,"28,495.00 ",Pharmaceutical purchase,RH16 1AH
Balance Sheet,Fixed Assets,19/05/2023,Additions - Assets Under Construction,CAPITAL (Reconfig CRH),Darwin Group Limited,BOS4496,"159,134.63 ",CALDERDALE LEARNING CENTRE - DEMOLITION OF DRYCLOUGH CLOSE,SY4 4EA
Balance Sheet,Fixed Assets,03/05/2023,Additions - Assets Under Construction,Capital (Estates),E A Foulds Ltd,102079,"32,035.20 ",Huddersfield Royal Infirmary - LIFTS C1 & C2 - SUPPLY AND INSTALL FLUSH MOUNTED STATIONS & ASSCIATED BUILDERS/FIRE STOPPING - FOR EVACUATION / FIRE SERVICE LIFTS AS PER YOUR TENDER RETURN,BB8 9AE
Balance Sheet,Fixed Assets,24/05/2023,Additions - Assets Under Construction,Capital (Estates),E A Foulds Ltd,102176,"32,035.20 ",Huddersfield Royal Infirmary - LIFTS C1 & C2 - SUPPLY AND INSTALL FLUSH MOUNTED STATIONS & ASSCIATED BUILDERS/FIRE STOPPING - FOR EVACUATION / FIRE SERVICE LIFTS AS PER YOUR TENDER RETURN,BB8 9AE
Balance Sheet,Fixed Assets,24/05/2023,Additions - Assets Under Construction,Capital (Estates),E A Foulds Ltd,102176,"32,035.20 ",Huddersfield Royal Infirmary - LIFTS C1 & C2 - FIRE STOP ALL LANDING ENTRANCES INSIDE SHAFTS - FOR EVACUATION / FIRE SERVICE LIFTS AS PER YOUR TENDER RETURN,BB8 9AE
CHS Estates,L2 Estates,05/05/2023,Electricity,Estates Operations,EDF Energy Customers Ltd,000015128827,"199,459.46 ",Mains Gas Calderdale Royal Hospital,W1T 4EZ
Balance Sheet,Fixed Assets,26/05/2023,Additions - Assets Under Construction,Capital (Estates),Fresenius Kabi Ltd,914730053,"43,200.00 ",ITEM - Z020130DESCRIPTION - Agilia SP PCA WiFi infusion pump,WA7 1NT
Medical Division,Integrated Medical Specialities,10/05/2023,Contractual Clinical Services,Dermatology,Gutcare.Org Ltd,024,"29,950.00 ",Insourcing services to enable the recovery of Neurology  Neurophysiology  Rheumatology and Dermatology activity.,RM11 2EZ
Medical Division,Medical Specialities,10/05/2023,Contractual Clinical Services,Gastroenterology,Gutcare.Org Ltd,12,"27,362.50 ",Insourcing services to enable the recovery of Neurology  Neurophysiology  Rheumatology and Dermatology activity.,RM11 2EZ
Medical Division,Integrated Medical Specialities,10/05/2023,Contractual Clinical Services,Dermatology,Gutcare.Org Ltd,15,"28,081.00 ",Insourcing services to enable the recovery of Neurology  Neurophysiology  Rheumatology and Dermatology activity.,RM11 2EZ
Medical Division,Integrated Medical Specialities,10/05/2023,Contractual Clinical Services,Dermatology,Gutcare.Org Ltd,20,"30,381.00 ",Insourcing services to enable the recovery of Neurology  Neurophysiology  Rheumatology and Dermatology activity.,RM11 2EZ
Medical Division,Medical Specialities,10/05/2023,Contractual Clinical Services,Gastroenterology,Gutcare.Org Ltd,46,"61,200.00 ",Insourcing services to enable the recovery of Neurology  Neurophysiology  Rheumatology and Dermatology activity.,RM11 2EZ
CHS Estates,L2 Estates,17/05/2023,Med Surg Eqpt Mtce Contracts,Management Estates,Haemonetics Ltd,516100,"31,687.20 ",M951 - Premium Service Contract for the Transfusion BloodTrack System - including software support  Kiosks and Haemobanks 20 & 80.Agreement Commencing - 1st April 2023 - 31st March 2024,WD25 7GS
Health Informatics,Corporate And Operations,26/05/2023,Computer Software / License  Fees,It Support,Hewlett-Packard International Bank Plc,400901402874,"94,219.02 ",2023-2024 Finance for  European Electronic Barracuda  Cloud to Cloud Backup£94 219.02 (over 3 years £249 550:00). Advice no C11870/7059586,371607
Central & Technical,Tech Accounting,19/05/2023,B5 Agency Nursing,Tech Accounting,Icare24 Ltd,INV-1234425.A,"25,196.54 ",B5 Agency Nursing,B16 8QG
Central & Technical,Tech Accounting,19/05/2023,B5 Agency Nursing,Tech Accounting,Icare24 Ltd,INV-1237624.A,"26,617.92 ",B5 Agency Nursing,B16 8QG
Medical Division,Acute Medical,19/05/2023,Pbr Excluded Devices (Pass Through),Diabetes Endocrinology,Insulet International Ltd,900089025,"25,698.48 ",Insulin pump consumables,W6 9HR
Balance Sheet,L2 Current Assets,24/05/2023,Finished Processed Goods,Stock & Work In Progress,Janssen-Cilag Ltd,930914758,"47,692.80 ",Pharmaceutical purchase,HP12 4EG
Balance Sheet,L2 Current Assets,24/05/2023,Finished Processed Goods,Stock & Work In Progress,Janssen-Cilag Ltd,930915922,"47,692.80 ",Pharmaceutical purchase,HP12 4EG
Balance Sheet,Fixed Assets,24/05/2023,Additions - Assets Under Construction,Capital (Surgical),Karl Storz Endoscopy (Uk) Ltd,6020158576,611.94,Fiber optic light cable 230cm  0 3.5mm  with straight connector  diameter 3.5mm  length 230cm495NAQuote: 5100132849,SL14TQ
Balance Sheet,Fixed Assets,24/05/2023,Additions - Assets Under Construction,Capital (Surgical),Karl Storz Endoscopy (Uk) Ltd,6020158576,769.11,Laryng grasping forceps  large  22cm  Laryngoforce II grasp forceps with oval fenestrat alligator jaws  large  spec matt finish with suction chan to remove Laser vapors with cleans connect working length 22cm8662GL,SL14TQ
Balance Sheet,Fixed Assets,24/05/2023,Additions - Assets Under Construction,Capital (Surgical),Karl Storz Endoscopy (Uk) Ltd,6020158576,541.26,Miniature grasping forceps 23cm  extra delicate  serrated with triangular jaws  curved upwards to left with cleansing connector  working length 23cm8593HM,SL14TQ
Balance Sheet,Fixed Assets,24/05/2023,Additions - Assets Under Construction,Capital (Surgical),Karl Storz Endoscopy (Uk) Ltd,6020158576,541.26,Miniature grasping forceps  23cm  extra delicate  serrated with triangular jaws  curved upwards to right with cleansing connector  working length 23cm8593GM,SL14TQ
Balance Sheet,Fixed Assets,24/05/2023,Additions - Assets Under Construction,Capital (Surgical),Karl Storz Endoscopy (Uk) Ltd,6020158576,696.57,Laryngoscope II clip forceps  right  jaws curved to right with cleaning connector  working length 22cm  for use with clips 8665 T8665R,SL14TQ
Balance Sheet,Fixed Assets,24/05/2023,Additions - Assets Under Construction,Capital (Surgical),Karl Storz Endoscopy (Uk) Ltd,6020158576,106.02,Unipolar high frequency cord  300cm with 8mm plug  length 300cm for use with Autocon III and Autocon II  connection compatible with Valleylab units26006M,SL14TQ
Balance Sheet,Fixed Assets,24/05/2023,Additions - Assets Under Construction,Capital (Surgical),Karl Storz Endoscopy (Uk) Ltd,6020158576,130.20,Support rod for 8575 K/KA  movable with metal ring  diameter 9cm  length 34cm for use with Laryngoscope holder 8575 K/KA8575KB,SL14TQ
Balance Sheet,Fixed Assets,24/05/2023,Additions - Assets Under Construction,Capital (Surgical),Karl Storz Endoscopy (Uk) Ltd,6020158576,"1,393.14",Laryngoforce II clip forceps  left  jaws curved to left with cleaning connector  working length 22cm for use with clip 8665 T8665L,SL14TQ
Balance Sheet,Fixed Assets,24/05/2023,Additions - Assets Under Construction,Capital (Surgical),Karl Storz Endoscopy (Uk) Ltd,6020158576,"8,187.72",Oropharyngoscope lat wings 14cm Steiner distend operat adults black coat rgt/lt side wings prevnt tong/soft tiss obst lum  chan rem vapor integ han'l/blade  clip prox illum 497AC hold 8575K/8575KC8666DN,SL14TQ
Balance Sheet,Fixed Assets,24/05/2023,Additions - Assets Under Construction,Capital (Surgical),Karl Storz Endoscopy (Uk) Ltd,6020158576,907.68,Clip for proximal illumination497AC,SL14TQ
Balance Sheet,Fixed Assets,24/05/2023,Additions - Assets Under Construction,Capital (Surgical),Karl Storz Endoscopy (Uk) Ltd,6020158576,89.28,Suction tube  3mm  20cm to remove vapor  O.D 3mm working length 20cm for use with operating laryngoscopes and adaptor 8661P8661N,SL14TQ
Balance Sheet,Fixed Assets,24/05/2023,Additions - Assets Under Construction,Capital (Surgical),Karl Storz Endoscopy (Uk) Ltd,6020158576,"1,082.52",Miniature grasping forceps 23cm  extra delicate  serrated with triangular jaws  curved upwards to left with cleaning connector  working length 23cm8593HM,SL14TQ
Balance Sheet,Fixed Assets,24/05/2023,Additions - Assets Under Construction,Capital (Surgical),Karl Storz Endoscopy (Uk) Ltd,6020158576,"1,538.22",Laryng grasping forceps  medium  22cm  Laryngoforce II with oval alligator jaws  medium  special matt finish with suction channel to remove Laser vapors with cleaning connector  working length 22cm8662FL,SL14TQ
Balance Sheet,Fixed Assets,24/05/2023,Additions - Assets Under Construction,Capital (Surgical),Karl Storz Endoscopy (Uk) Ltd,6020158576,"2,198.52",Laryngoscope  19cm  small  Steiner operating laryngoscope for adults with difficult anatomical circumstances and for children with black coat with integrat chan to rem vapor  outer diam prox 23x15mm  length 19cm8661DN,SL14TQ
Balance Sheet,Fixed Assets,24/05/2023,Additions - Assets Under Construction,Capital (Surgical),Karl Storz Endoscopy (Uk) Ltd,6020158576,679.83,Laryngoscopes Slimline with side slit Benjamin-Parsonsoperating larynscope & subglottiscope adult size slender  length 17cm with 10.5cm side slit intro bronchoscopes & tracheal tubes with clip prox illum 497AC8574SLS,SL14TQ
Balance Sheet,Fixed Assets,24/05/2023,Additions - Assets Under Construction,Capital (Surgical),Karl Storz Endoscopy (Uk) Ltd,6020158576,619.38,Super-slimline laryngoscope  flat Benjamin operating laryngoscope & subglottiscope adult length 17cm extra flat & slim size for very difficult anatomical circumstances with clip for proximal illumination 497AC8574SSL,SL14TQ
Balance Sheet,Fixed Assets,24/05/2023,Additions - Assets Under Construction,Capital (Surgical),Karl Storz Endoscopy (Uk) Ltd,6020158576,"1,040.67",Dedo laryngoscope 18cm  operating laryngoscope with extra light handle  length 18cm8890A,SL14TQ
Balance Sheet,Fixed Assets,24/05/2023,Additions - Assets Under Construction,Capital (Surgical),Karl Storz Endoscopy (Uk) Ltd,6020158576,66.96,Suction tube for 8590KL  8890A to remove vapor  length 14cm for use with laryngoscopes 8590KL and 8890A8574LN,SL14TQ
Balance Sheet,Fixed Assets,24/05/2023,Additions - Assets Under Construction,Capital (Surgical),Karl Storz Endoscopy (Uk) Ltd,6020158576,"1,599.60",Operating laryngoscope large  15cm Lindholm for adults  inner diameter proximal end 39x24mm distal end width 18mm  length 15cm8587A,SL14TQ
Balance Sheet,Fixed Assets,24/05/2023,Additions - Assets Under Construction,Capital (Surgical),Karl Storz Endoscopy (Uk) Ltd,6020158576,880.71,Lindholm operating laryngoscope  17cm  for adults inner diameter proximal end 39x24mm  distal end width 18mm  length 17cm8587AA,SL14TQ
Surgery & Anaesthetics,Surgical Divisional Support,24/05/2023,Med Surg Eqpt General,Support Services,Karl Storz Endoscopy (Uk) Ltd,6020158576,675.18,Fiber optic light carrier 7.5cm for laryngoscope 8587A/AA/KK8587GF,SL14TQ
Surgery & Anaesthetics,Surgical Divisional Support,24/05/2023,Med Surg Eqpt General,Support Services,Karl Storz Endoscopy (Uk) Ltd,6020158576,198.09,Suction tube to remove vapor 8.5cm  insertable suction tube to remove vapor for laryngoscope 8587A8587M,SL14TQ
Surgery & Anaesthetics,Surgical Divisional Support,24/05/2023,Med Surg Eqpt General,Support Services,Karl Storz Endoscopy (Uk) Ltd,6020158576,703.08,Paediatric laryngoscope  11.5cm Benjamin-Lindhom operat laryngoscope for children inner diam prox end 30mmx18mm distal end 20mm length 11.5cm lateral out chan fiber optic light carrier 8557PF smoke evac tube 8587PM8587N,SL14TQ
Balance Sheet,Fixed Assets,24/05/2023,Additions - Assets Under Construction,Capital (Surgical),Karl Storz Endoscopy (Uk) Ltd,6020158576,225.06,Fiber optic light carrier 6.5cm for distal illumination  length 6.5cm for 8587P8587PF,SL14TQ
Surgery & Anaesthetics,Surgical Divisional Support,24/05/2023,Med Surg Eqpt General,Support Services,Karl Storz Endoscopy (Uk) Ltd,6020158576,66.03,Suction tube to remove vapor  length 6.5cm for 8587P8587PM,SL14TQ
Balance Sheet,Fixed Assets,24/05/2023,Additions - Assets Under Construction,Capital (Surgical),Karl Storz Endoscopy (Uk) Ltd,6020158576,775.62,Parsons laryng size 4 med 14.5cm child up to12 med flat elev tip bett posit in tong gr ant commis wi prox open binoc view rgt slot intro bronch-oeophago & operating instr  left insufflat chan  clip 497AC prox illum8576B,SL14TQ
Balance Sheet,Fixed Assets,24/05/2023,Additions - Assets Under Construction,Capital (Surgical),Karl Storz Endoscopy (Uk) Ltd,6020158576,453.84,Clip for proximal illumination497AC,SL14TQ
Balance Sheet,Fixed Assets,24/05/2023,Additions - Assets Under Construction,Capital (Surgical),Karl Storz Endoscopy (Uk) Ltd,6020158576,850.95,Laryngoscope holder and chest support  Gottingen model 8575KA laryngoscopeholder with adjust wheel 8575KB support rod  movable metal ring  diameter 9cm  length 34cm8575K,SL14TQ
Balance Sheet,Fixed Assets,24/05/2023,Additions - Assets Under Construction,Capital (Surgical),Karl Storz Endoscopy (Uk) Ltd,6020158576,337.59,Scissors Reynolds 13cm curved delicate tips791813,SL14TQ
Balance Sheet,Fixed Assets,24/05/2023,Additions - Assets Under Construction,Capital (Surgical),Karl Storz Endoscopy (Uk) Ltd,6020158576,535.68,Clip Applicators  RhinoforceII right Montgomery-Youngs endonasal endoscopic spenopalatine artery ligature suction chan hand spring jaws angled right cleaning connector length 13cm Titanium clips 8665T452650C,SL14TQ
Balance Sheet,Fixed Assets,24/05/2023,Additions - Assets Under Construction,Capital (Surgical),Karl Storz Endoscopy (Uk) Ltd,6020158576,619.38,Rhinoforce II applicator angled left Montgomery-Youngs endonasal endoscopic sphenopalatine artery ligature suction chan hand spring jaws angled left cleaning connector 13cm Titanium clips 8665T452650D,SL14TQ
Balance Sheet,Fixed Assets,24/05/2023,Additions - Assets Under Construction,Capital (Surgical),Karl Storz Endoscopy (Uk) Ltd,6020158576,"1,082.52",Heart shaped laryngeal forceps miniature grasping forceps 23cm  extra delicate serrated triangular jaws curved upwards to right cleaning connector length 23cm8593GM,SL14TQ
Balance Sheet,Fixed Assets,24/05/2023,Additions - Assets Under Construction,Capital (Surgical),Karl Storz Endoscopy (Uk) Ltd,6020158576,"1,082.52",Miniature grasping forceps 23cm extra delicate serrated triangular jaws curved upwards to left cleaning connector length 23cm8593HM,SL14TQ
Balance Sheet,Fixed Assets,24/05/2023,Additions - Assets Under Construction,Capital (Surgical),Karl Storz Endoscopy (Uk) Ltd,6020158576,"1,091.82",Distending forceps 24cm Lindholm for retraction of true vocal cords and false vocal cords distal end blunt curved blades self-retaining with ratchet cleaning connector length 24cm8654B,SL14TQ
Balance Sheet,Fixed Assets,24/05/2023,Additions - Assets Under Construction,Capital (Surgical),Karl Storz Endoscopy (Uk) Ltd,6020158576,"1,205.28",Back biters Ostrum punch small 9cm for children resection of uncinate process backward cutting sheath 360 degree rotating sheath slight curved downwards small bite 2.3x4mm cleaning connector length 9cm459097,SL14TQ
CHS Estates,L2 Estates,19/05/2023,Rates,Estates Operations,Kirklees Council,969286425_2023,"112,097.00 ",Council Tax for Huddersfield Royal Infirmary for 23/24,HD1 2NF
Families & Specialist Services,Pharmacy,12/05/2023,Healthcare From Commercial Sector,Pharm Gen,L Rowland & Company (Retail) Ltd,1800000411,"95,044.66",Rowlands Outpatient Pharmacy contract DISPENSING FEE ,WA7 3DJ
Families & Specialist Services,Pharmacy,12/05/2023,Healthcare From Commercial Sector,Pharm Gen,L Rowland & Company (Retail) Ltd,1800000411,"830,218.37 ",Rowlands Outpatient Pharmacy Contract.  medicines costs,WA7 3DJ
Balance Sheet,Fixed Assets,03/05/2023,Additions - Assets Under Construction,Capital (Surgical),Lipoelastic Ltd,23711532,"49,583.88 ",Lipomodelling Machine Body Jet Evo as per quotation,N7 8EG
Surgery & Anaesthetics,Head & Neck,05/05/2023,Computer Software / License  Fees,Ophthalmology,Medisoft Ltd,103467,"27,959.00 ",Medisoft (Sight) Ophthalmology Technical & Telephone Use Support and Upgrades to the Licensed ModulesPeriod of Cover 4th January 2023 to 3rd January 2024,LS2 9DF
Families & Specialist Services,Radiology,15/05/2023,Med Surg Eqpt Hire,Ct,Medispace B.V.,20230244,"45,038.88 ",Rental of a CM050 CT scan box with Canon Prime 160 slice CT scanner plus 2 radiographers to run the service 8am-20.00pm 7 days per week,2712 PJ  The Netherlands
Pmu,Pmu,17/05/2023,Drugs,Pmu,Merck Life Science UK Limited,8281328532,"28,641.28 ",Pharmaceutical purchase,NG9 2JR
Balance Sheet,Fixed Assets,12/05/2023,Other Debtors < One Year,CAPITAL (Reconfig CRH),Mott Macdonald Ltd,100539893,"33,342.00 ",Technical supervision and interpretive report for the ground investigation at Calderdale Royal Hospital - enabling works,S1 2JY
Families & Specialist Services,Pathology,15/05/2023,Blood Products,Blood Sciences,NHS Blood And Transplant,7014099,"85,109.73 ",MONTHLY CONTRACT CHARGE BLOOD & COMPONENTS,LS15 7TW
Families & Specialist Services,Pathology,15/05/2023,Blood Products,Blood Sciences,NHS Blood And Transplant,7014100,"32,812.05 ",MONTHLY CONTRACT CHARGE BLOOD & COMPONENTS,LS15 7TW
Corporate Services,Service Performance,12/05/2023,Contract : Other External,Properties,NHS Property Services Ltd,667005,"4,841.49",Brighouse Health Centre Rates On Account 01-Apr-2023 30-Jun-2023,EC2V 7NG
Balance Sheet,L2 Long Term Creditors,12/05/2023,Lease Liabilities under IFRS 16 > 1 year,Finance Leases,NHS Property Services Ltd,667005,"28,440.36",Brighouse Health Centre  Rent 01-Apr-2023 30-Jun-2023,EC2V 7NG
Corporate Services,Service Performance,12/05/2023,Contract : Other External,Properties,NHS Property Services Ltd,668059,"44,478.90 ",SERVICE CHARGE  BRIGHOUSE HC 01.04.23-30.06.23,EC2V 7NG
Corporate Services,Service Performance,12/05/2023,Contract : Other External,Properties,NHS Property Services Ltd,668062,"41,915.66 ",SERVICE CHARGE TODMORDEN HC 01.04.23-30.06.23,EC2V 7NG
Corporate Services,Quality,15/05/2023,Clinical Negligence,Quality,NHS Resolution,SICX412022,"843,190.75 ",Clinical Negligence provision,SW1W 9SZ
Families & Specialist Services,Womens,15/05/2023,Clinical Negligence,Womens Management,NHS Resolution,SICX412022,"904,894.45 ",Clinical Negligence provision,SW1W 9SZ
Corporate Services,Quality,15/05/2023,Insurance Costs,Quality,NHS Resolution,SICX412022,"20,948.60 ",Clinical Negligence provision,SW1W 9SZ
CHS Balance Sheet,Current Liabilities,03/05/2023,Non- NHS  Trade Creditors < One Year,Other Creditors,NHS Supply Chain,1123308595,"344,165.84 ",Goods delivered week ending 31-Mar-2023,DE55 4QJ
CHS Balance Sheet,Current Liabilities,05/05/2023,Non- NHS  Trade Creditors < One Year,Other Creditors,NHS Supply Chain,1124002779,"134,024.95 ",Goods delivered week ending 07-Apr-2023,DE55 4QJ
CHS Balance Sheet,Current Liabilities,05/05/2023,Non- NHS  Trade Creditors < One Year,Other Creditors,NHS Supply Chain,1124005533,"82,044.62 ",Goods delivered week ending 07-Apr-2023,DE55 4QJ
CHS Balance Sheet,Current Liabilities,12/05/2023,Non- NHS  Trade Creditors < One Year,Other Creditors,NHS Supply Chain,1124007232,"110,415.12 ",Goods delivered week ending 14-Apr-2023,DE55 4QJ
CHS Balance Sheet,Current Liabilities,12/05/2023,Non- NHS  Trade Creditors < One Year,Other Creditors,NHS Supply Chain,1124011097,"203,775.40 ",Goods delivered week ending 14-Apr-2023,DE55 4QJ
CHS Balance Sheet,Current Liabilities,19/05/2023,Non- NHS  Trade Creditors < One Year,Other Creditors,NHS Supply Chain,1124013500,"127,180.04 ",Goods delivered week ending 21-Apr-2023,DE55 4QJ
CHS Balance Sheet,Current Liabilities,19/05/2023,Non- NHS  Trade Creditors < One Year,Other Creditors,NHS Supply Chain,1124018050,"187,689.06 ",Goods delivered week ending 21-Apr-2023,DE55 4QJ
CHS Balance Sheet,Current Liabilities,26/05/2023,Non- NHS  Trade Creditors < One Year,Other Creditors,NHS Supply Chain,1124020866,"146,974.52 ",Goods delivered week ending 28-Apr-2023,DE55 4QJ
CHS Balance Sheet,Current Liabilities,26/05/2023,Non- NHS  Trade Creditors < One Year,Other Creditors,NHS Supply Chain,1124025621,"238,032.74 ",Goods delivered week ending 28-Apr-2023,DE55 4QJ
CHS Estates,L2 Estates,26/05/2023,Med Surg Eqpt Mtce Contracts,Management Estates,NHS Supply Chain - Maintenance,2123008053,"59,604.81 ",Maintenance of OEC  Elite 9 STD & STILLE IMAGIQ2 table equipment.Year 3 of 4 (01/04/2023 - 31/3/2024).  Payment terms: annual in advance.,DE55 4QJ
CHS Estates,L2 Estates,12/05/2023,Med Surg Eqpt Mtce Contracts,Management Estates,NHS Supply Chain - Maintenance,2124000198,"68,975.15 ",Fully Comprehensive Maintenance for EndoscopyEBUS Bronchoscope Stack System.Agreement Commencing - 14th March 2023 - 13th March 2024,DE55 4QJ
CHS Estates,L2 Estates,17/05/2023,Med Surg Eqpt Mtce Contracts,Management Estates,NHS Supply Chain - Maintenance,2124000343,"29,798.74 ",2 of 5 Year Performance TOP Maintenance ofMammomat Inspiration Mammography Digital andAnalogue Equipment ,DE55 4QJ
CHS Estates,L2 Estates,26/05/2023,Med Surg Eqpt Mtce Contracts,Maintenance & Leases,NHS Supply Chain - Maintenance,2192400218,"-27,075.00 ",Year 4 of 5 - Platinum Service Package of Ultrasound Equipment Including Physiotherapy Equipment and Probe PoolContract period 1 April 2023 - 31 March 2024Payment terms: annual in advance,DE55 4QJ
Corporate Services,Corporate Services,03/05/2023,Books Journals and Subscriptions,Corporate Services,Northern Care Alliance NHS Foundation Trust.,N0010824,"30,000.00 ",NHS Quest Membership Fee01.12.22 to 30.11.23,M50 1SY
Balance Sheet,L2 Current Assets,12/05/2023,Finished Processed Goods,Stock & Work In Progress,Novartis Pharmaceuticals Uk Ltd,92760393,"42,399.36 ",Pharmaceutical purchase,W12 7FQ
CHS Estates,L2 Estates,03/05/2023,Electricity,Estates Operations,Opus Energy Ltd,42464126,"105,883.98 ",Mains electricity Huddersfield Royal Infirmary FY 2022/23,"YO8 8PH	"
Community Division,Community Nursing,24/05/2023,Training Expenses,End Of Life & Palliative care,Overgate Hospice,249,"35,433.75 ",End of Life Educator - 6 Months Apr 23 - Sept 23,HX5 0QY
Pmu,Pmu,03/05/2023,Drugs,Pmu,Pilz Ltd,00007,"25,221.92 ",Pharmaceutical purchase,S75 3SP
Pmu,Pmu,24/05/2023,Drugs,Pmu,Pilz Ltd,00008,"26,216.75 ",Pharmaceutical purchase,S75 3SP
Surgery & Anaesthetics,Surgical Divisional Support,17/05/2023,Healthcare From Commercial Sector,Support Services,Pioneer Healthcare Ltd,890,"26,307.00 ",Insourcing Services ENT  Ophthalmology,S10 5UB
Balance Sheet,L2 Current Assets,26/05/2023,Finished Processed Goods,Stock & Work In Progress,Roche Products Ltd,1322278678,"52,627.87 ",Pharmaceutical purchase,AL7 1TW
Balance Sheet,L2 Current Assets,26/05/2023,Finished Processed Goods,Stock & Work In Progress,Roche Products Ltd,1322280529,"43,680.00 ",Pharmaceutical purchase,AL7 1TW
Balance Sheet,L2 Current Assets,26/05/2023,Finished Processed Goods,Stock & Work In Progress,Roche Products Ltd,1322281141,"57,263.88 ",Pharmaceutical purchase,AL7 1TW
Balance Sheet,L2 Current Assets,26/05/2023,Finished Processed Goods,Stock & Work In Progress,Roche Products Ltd,1322281597,"28,938.00 ",Pharmaceutical purchase,AL7 1TW
CHS Estates,L2 Estates,17/05/2023,Gas,Estates Operations,SEFE Energy Limited,INV02861482,"197,922.31 ",Mains gas Huddersfield Royal Infirmary,M15 4RP
Health Informatics,Corporate And Operations,26/05/2023,Computer Software / License  Fees,Professional Services,Softcat Plc,INV02918304,"183,000.00 ",Year 3 - CYBEREASON - Contract period 30/4/23 - 31/3/24,SL7 1TB
Health Informatics,Modernisation Programme,10/05/2023,Computer Maintenance,Modernisation Programme,Softcat Plc,INVUK815954,"90,000.00 ",NERVECENTRE CONTRACT RENEWAL FOR ANNUAL SUPPORT OVER 5 YEARS (YEAR 4 OF 5),SL7 1TB
Surgery & Anaesthetics,Surgical Divisional Support,10/05/2023,Contractual Clinical Services,Independent Sector,Spire Healthcare Ltd,RWYELDICF2223M10,"49,394.95 ",Provision of Elective Activity,RG1 9PL
CHS Facilities,L2 Facilities,03/05/2023,External Contracts : Laundry,Laundry,Synergy Health Managed Services Ltd,50001228,"117,307.32 ",LAUNDRY SERVICE CONTRACT,WA9 5XH
CHS Facilities,L2 Facilities,26/05/2023,External Contracts : Laundry,Laundry,Synergy Health Managed Services Ltd,50001266,"96,061.92 ",LAUNDRY SERVICE CONTRACT,WA9 5XH
Balance Sheet,Fixed Assets,19/05/2023,Additions - Assets Under Construction,CAPITAL (Reconfig HRI),Turner & Townsend Project Management Ltd,PRIV00006453,"79,627.13 ",Emergency Department - PROFFESSIONAL SERVICES - PROJECT MANANGEMENT - VARIATION TO COVER THE PERIOD UNTIL AUGUST 2023,LS18 4GH
Balance Sheet,Fixed Assets,19/05/2023,Additions - Assets Under Construction,CAPITAL (Reconfig CRH),Turner & Townsend Project Management Ltd,PRIV00014926,"144,864.00 ",MODULAR LEARNING CENTRE - FEES FOR PROJECT MANAGMENT  COST MANAGMENT  CONTRACT SERVICES AMD CDM CLIENT ADVISOR ,LS18 4GH
Balance Sheet,L2 Current Assets,26/05/2023,Other Debtors < One Year,Other Debtors,Tuskerdirect Ltd,75228,"142,365.31 ",Salary Sacrifice cars,WD18 8YF
Health Informatics,Information,19/05/2023,Computer Software / License  Fees,Business Intelligence,University Hospitals Birmingham NHS Foundation Trust,OP/A058556,"30,000.00 ",Healthcare Evaluation Data (HED) subscription £30 000 plus VAT per year. ,B16 6TT
CHS Estates,L2 Estates,12/05/2023,Building And Engineering Equipment Maintenance,Estates Operations,Water Hygiene Solutions Ltd,8061,"37,095.19 ",Legionella sampling and AE work (S),WF14 9HU
Balance Sheet,Fixed Assets,24/05/2023,Additions - Assets Under Construction,Capital (Fss),Wolverson X-Ray Ltd,0000103830,"185,699.40 ",Universal Digital  Radiographic X-Ray System with Two Detectors,WV13 2DY
Balance Sheet,Fixed Assets,05/05/2023,Additions - Assets Under Construction,Capital (Fss),Wolverson X-Ray Ltd,0000103832,"375,700.80 ",Universal Digital Radiographic X-Ray System with Two Detectors,WV13 2DY
